bitfinex/quotes_SOLUSD_20240813
["timestamp","ask_amount","ask_price","bid_price","bid_amount"]
[1723547433250,17.2815,144.67,144.6,21.9484]
[1723547433550,6.915,144.62,144.6,21.9484]
[1723547434050,6.9142,144.63,144.6,21.9484]
[1723547434532,0.81962878,144.66,144.6,21.9484]
[1723547434736,0.81962878,144.66,144.55,57.5043]
[1723547434737,6.9159,144.6,144.56,21.9206]
[1723547435056,0.81962878,144.64,144.56,21.9206]
[1723547435263,20.0,144.64,144.56,21.9206]
[1723547435568,6.9163,144.59,144.56,21.9206]
[1723547435761,17.2858,144.63,144.56,21.9206]
[1723547436066,20.0,144.62,144.56,21.9206]
[1723547436237,6.9152,144.61,144.56,28.838]
[1723547436428,26.9148,144.62,144.57,6.917]
[1723547436839,6.9152,144.61,144.56,46.1314]
[1723547437054,0.81962878,144.61,144.57,0.12549]
[1723547437256,0.81962878,144.61,144.57,45.12549]
[1723547437438,40.21,144.6,144.52,21.9206]
[1723547437644,6.9178,144.56,144.52,21.9206]
[1723547437857,6.9171,144.57,144.52,21.9206]
[1723547438049,20.0,144.59,144.53,6.9189]
[1723547438257,20.0,144.59,144.52,21.9206]
[1723547438258,6.9172,144.57,144.52,21.9206]
[1723547438730,18.10562878,144.63,144.53,17.2967]
[1723547438731,17.286,144.63,144.53,17.2967]
[1723547438934,6.9147,144.62,144.56,6.9174]
[1723547439230,6.9147,144.62,144.57,0.25098]
[1723547439438,6.9147,144.62,144.58,0.25098]
[1723547439638,6.9147,144.62,144.59,0.12549]
[1723547439853,6.9147,144.62,144.59,0.25098]
[1723547441031,17.2823,144.66,144.58,45.0]
[1723547441032,17.2853,144.64,144.58,45.0]
[1723547441239,20.0,144.63,144.58,45.0]
[1723547441472,6.9161,144.59,144.58,45.0]
[1723547441659,6.9175,144.56,144.52,21.9206]
[1723547442874,6.9176,144.56,144.52,21.9206]
[1723547443564,6.9181,144.55,144.52,21.9206]
[1723547443768,6.9181,144.55,144.53,45.12549]
[1723547444377,6.9185,144.54,144.53,45.12549]
[1723547444536,6.9185,144.54,144.53,45.37647]
[1723547444736,6.9185,144.54,144.53,45.25098]
[1723547444953,6.9185,144.54,144.53,45.0]
[1723547445661,74.7855,144.62,144.53,45.0]
[1723547445843,6.9166,144.58,144.53,51.9186]
[1723547446248,6.9171,144.57,144.53,45.0]
[1723547446663,6.9171,144.57,144.54,0.12549]
[1723547446841,6.9166,144.58,144.54,0.50196]
[1723547447345,6.9166,144.58,144.55,16.3052]
[1723547447551,6.9166,144.58,144.56,45.0]
[1723547447865,6.917,144.57,144.56,45.0]
[1723547458971,17.2858,144.63,144.57,0.12549]
[1723547459160,6.9143,144.63,144.59,0.12549]
[1723547459483,6.9143,144.63,144.59,45.50196]
[1723547459680,6.9147,144.62,144.59,45.50196]
[1723547460356,6.914,144.64,144.59,84.61796]
[1723547460684,17.2829,144.66,144.59,45.50196]
[1723547460860,6.9146,144.62,144.59,45.50196]
[1723547461055,6.9151,144.61,144.59,45.50196]
[1723547461257,6.9156,144.6,144.59,45.50196]
[1723547461458,6.9156,144.6,144.59,45.0]
[1723547461669,6.9161,144.59,144.58,6.2371]
[1723547461983,6.9161,144.59,144.58,6.48808]
[1723547462799,6.9161,144.59,144.58,6.61357]
[1723547462965,6.9161,144.59,144.58,6.73906]
[1723547463295,6.9158,144.6,144.58,51.73906]
[1723547463503,6.9158,144.6,144.59,45.0]
[1723547464863,6.9151,144.61,144.59,45.0]
[1723547465186,34.5628,144.67,144.59,45.0]
[1723547465187,6.9143,144.63,144.6,0.25098]
[1723547465369,6.9143,144.63,144.61,0.25098]
[1723547465556,6.9139,144.64,144.61,0.25098]
[1723547465987,6.9142,144.63,144.61,0.25098]
[1723547467266,17.2771,144.7,144.62,15.27679]
[1723547467612,6.9127,144.67,144.64,0.12549]
[1723547467907,6.9127,144.67,144.63,45.0]
[1723547467908,6.9137,144.64,144.63,45.0]
[1723547468473,6.9128,144.66,144.63,45.0]
[1723547469194,6.9124,144.67,144.64,0.37647]
[1723547469384,6.913,144.66,144.64,0.50196]
[1723547469590,6.9132,144.65,144.64,0.50196]
[1723547469781,6.9137,144.64,144.63,45.0]
[1723547469990,6.9133,144.65,144.63,45.25098]
[1723547470683,6.9137,144.64,144.63,45.25098]
[1723547470889,6.9137,144.64,144.63,45.50196]
[1723547471077,6.9134,144.65,144.63,45.50196]
[1723547471402,6.9125,144.67,144.64,0.37647]
[1723547471575,6.9119,144.68,144.65,0.12549]
[1723547471911,6.9127,144.66,144.65,0.12549]
[1723547472074,6.9128,144.66,144.64,0.37647]
[1723547472500,6.9124,144.67,144.64,0.37647]
[1723547472689,6.9124,144.67,144.65,6.6446]
[1723547472880,6.9124,144.67,144.66,45.50196]
[1723547473285,17.2756,144.72,144.66,45.50196]
[1723547473685,6.9114,144.69,144.66,45.50196]
[1723547474006,6.911,144.7,144.66,45.50196]
[1723547475311,6.9114,144.69,144.66,45.50196]
[1723547476187,6.9118,144.68,144.66,45.50196]
[1723547477797,6.9114,144.69,144.66,45.50196]
[1723547478206,6.9121,144.68,144.66,45.50196]
[1723547481126,6.9115,144.69,144.66,45.50196]
[1723547481497,6.9118,144.68,144.66,45.50196]
[1723547482224,6.9127,144.66,144.65,6.6446]
[1723547483426,6.9127,144.66,144.65,51.6446]
[1723547483804,17.2764,144.71,144.65,51.77009]
[1723547484003,6.9118,144.68,144.66,45.0]
[1723547484609,6.9122,144.67,144.66,45.0]
[1723547484814,6.9122,144.67,144.66,45.50196]
[1723547485210,6.9122,144.67,144.66,45.0]
[1723547486116,6.9119,144.68,144.66,45.12549]
[1723547487938,6.9122,144.67,144.66,45.12549]
[1723547489136,6.9119,144.68,144.66,45.12549]
[1723547489325,6.9122,144.67,144.66,45.12549]
[1723547491912,17.2772,144.7,144.62,21.2402]
[1723547492236,6.9139,144.64,144.62,21.2402]
[1723547492417,6.9133,144.65,144.62,21.2402]
[1723547492618,20.0,144.69,144.62,21.2402]
[1723547492823,6.9124,144.67,144.62,28.1546]
[1723547493128,6.9124,144.67,144.62,45.4412]
[1723547493326,6.9119,144.68,144.64,0.12549]
[1723547494036,6.9119,144.68,144.64,7.16448]
[1723547494240,6.9119,144.68,144.66,0.12549]
[1723547494415,6.9122,144.67,144.66,0.25098]
[1723547494738,6.9122,144.67,144.66,0.50196]
[1723547494941,6.9122,144.67,144.66,0.37647]
[1723547495112,6.9127,144.66,144.65,45.12549]
[1723547495311,17.2784,144.69,144.62,38.5268]
[1723547495312,6.9134,144.65,144.62,21.2402]
[1723547495847,17.2811,144.67,144.62,21.2402]
[1723547496522,6.9141,144.63,144.62,21.2402]
[1723547496721,6.9141,144.63,144.62,0.25098]
[1723547497044,6.9148,144.62,144.58,22.0416]
[1723547498740,6.9152,144.61,144.58,22.0416]
[1723547499043,6.9152,144.61,144.59,45.12549]
[1723547499237,6.9156,144.6,144.59,45.0]
[1723547499744,6.9156,144.6,144.59,45.12549]
[1723547500114,6.9153,144.61,144.59,45.12549]
[1723547500939,6.9156,144.6,144.59,45.12549]
[1723547501139,6.9156,144.6,144.59,45.0]
[1723547501520,6.917,144.57,144.54,22.1079]
[1723547501841,6.917,144.57,144.55,0.25098]
[1723547502344,6.917,144.57,144.54,22.1079]
[1723547502846,0.81962878,144.6,144.54,22.1079]
[1723547503052,6.9172,144.57,144.54,22.1079]
[1723547503844,6.9166,144.58,144.54,29.0263]
[1723547504041,6.9162,144.59,144.55,7.04329]
[1723547504217,6.9162,144.59,144.56,45.37647]
[1723547504422,6.9167,144.58,144.56,45.37647]
[1723547504632,6.9162,144.59,144.56,0.37647]
[1723547506252,6.9158,144.6,144.57,0.12549]
[1723547506424,6.9157,144.6,144.57,0.12549]
[1723547506625,6.9157,144.6,144.57,45.12549]
[1723547507040,6.9161,144.59,144.57,45.12549]
[1723547507244,6.9161,144.59,144.58,45.0]
[1723547507550,6.9157,144.6,144.57,0.12549]
[1723547508426,6.9149,144.62,144.57,17.41799]
[1723547508637,6.9152,144.61,144.59,0.12549]
[1723547508840,6.9156,144.6,144.59,0.12549]
[1723547509643,6.9152,144.61,144.59,0.12549]
[1723547511156,17.2844,144.64,144.58,45.37647]
[1723547511362,6.9157,144.6,144.58,45.25098]
[1723547511935,6.9157,144.6,144.58,0.25098]
[1723547518549,6.9152,144.61,144.58,0.25098]
[1723547519244,6.9139,144.64,144.59,0.25098]
[1723547519444,6.9134,144.65,144.61,0.12549]
[1723547519645,6.9134,144.65,144.61,0.25098]
[1723547519844,6.9134,144.65,144.61,45.25098]
[1723547520561,6.9139,144.64,144.61,45.25098]
[1723547520767,6.9146,144.62,144.61,45.12549]
[1723547521654,15.6362,144.68,144.55,22.6676]
[1723547521655,47.8362,144.68,144.55,22.6676]
[1723547521873,47.8362,144.68,144.56,6.9172]
[1723547521874,6.9159,144.6,144.56,6.9172]
[1723547522173,6.9151,144.61,144.57,6.917]
[1723547522952,6.9151,144.61,144.59,0.12549]
[1723547523368,6.9142,144.63,144.59,0.12549]
[1723547523861,6.9147,144.62,144.59,0.12549]
[1723547525376,6.9142,144.63,144.59,0.12549]
[1723547525689,6.9147,144.62,144.59,0.12549]
[1723547526753,42.16706845,144.7,144.59,0.12549]
[1723547526956,6.913,144.66,144.61,7.04029]
[1723547527175,6.913,144.66,144.63,0.12549]
[1723547527552,6.9123,144.67,144.63,7.16488]
[1723547527863,6.9123,144.67,144.65,0.12549]
[1723547528055,6.9127,144.66,144.65,0.25098]
[1723547528249,6.9119,144.68,144.65,0.50196]
[1723547528463,6.9119,144.68,144.65,0.37647]
[1723547528955,6.9114,144.69,144.66,0.25098]
[1723547529150,6.9114,144.69,144.67,0.12549]
[1723547529378,6.9102,144.72,144.67,77.45098]
[1723547529563,6.9102,144.72,144.68,0.25098]
[1723547529756,6.9102,144.72,144.69,0.25098]
[1723547529947,6.9102,144.72,144.7,0.25098]
[1723547531785,17.2707,144.76,144.7,0.37647]
[1723547531786,6.9103,144.71,144.7,0.37647]
[1723547531953,2.76616421,144.77,144.67,45.0]
[1723547531954,6.9109,144.7,144.67,45.0]
[1723547532289,6.9113,144.69,144.68,0.37647]
[1723547532448,6.9113,144.69,144.68,0.50196]
[1723547533184,6.9113,144.69,144.67,45.0]
[1723547533768,6.911,144.7,144.67,45.0]
[1723547534251,6.9113,144.69,144.67,45.0]
[1723547534481,6.9118,144.68,144.67,45.12549]
[1723547534685,6.9118,144.68,144.67,45.50196]
[1723547535377,6.9114,144.69,144.67,45.50196]
[1723547535581,6.9108,144.7,144.67,45.50196]
[1723547537050,52.23516421,144.77,144.67,62.78226]
[1723547537256,6.9102,144.72,144.68,0.50196]
[1723547537765,6.9103,144.71,144.68,0.50196]
[1723547538161,6.9097,144.73,144.68,7.41346]
[1723547538362,6.9097,144.73,144.7,0.12549]
[1723547538583,6.9097,144.73,144.7,0.50196]
[1723547538780,18.09112878,144.75,144.7,0.50196]
[1723547538982,20.0,144.74,144.7,0.50196]
[1723547539491,6.9095,144.73,144.7,0.50196]
[1723547540086,20.0,144.74,144.7,7.41276]
[1723547540387,6.9086,144.75,144.72,0.12549]
[1723547540681,6.9081,144.76,144.72,0.50196]
[1723547541183,16.0803,144.8,144.72,0.50196]
[1723547541184,6.9089,144.74,144.72,0.50196]
[1723547541889,6.9086,144.75,144.72,0.50196]
[1723547542658,6.9081,144.76,144.72,16.24516]
[1723547542870,6.9081,144.76,144.73,45.0]
[1723547543080,6.9074,144.78,144.74,0.50196]
[1723547544072,6.9075,144.77,144.74,0.50196]
[1723547544270,6.9081,144.76,144.74,0.50196]
[1723547546266,6.9078,144.77,144.74,0.50196]
[1723547547601,6.9081,144.76,144.74,0.50196]
[1723547549519,6.9082,144.76,144.74,0.37647]
[1723547550404,6.9084,144.75,144.74,0.25098]
[1723547550600,6.9084,144.75,144.74,0.12549]
[1723547551372,6.9089,144.74,144.72,22.1548]
[1723547552277,6.9085,144.75,144.72,22.1548]
[1723547552803,6.9085,144.75,144.73,0.50196]
[1723547552966,6.9089,144.74,144.73,45.50196]
[1723547553170,6.9086,144.75,144.73,45.50196]
[1723547554400,17.27,144.76,144.68,21.4826]
[1723547554595,17.27,144.76,144.68,28.3941]
[1723547554897,6.9094,144.73,144.68,28.3941]
[1723547555096,6.9094,144.73,144.69,6.9112]
[1723547555694,6.9094,144.73,144.7,45.50196]
[1723547556411,33.0147,144.79,144.7,45.50196]
[1723547556612,20.0,144.78,144.71,12.85]
[1723547556791,20.0,144.78,144.72,45.50196]
[1723547557189,6.9087,144.75,144.72,45.50196]
[1723547558215,6.9089,144.74,144.72,45.50196]
[1723547558597,6.9089,144.74,144.72,0.50196]
[1723547559537,6.9087,144.75,144.72,0.50196]
[1723547560006,6.9088,144.75,144.72,0.50196]
[1723547561099,20.0,144.78,144.72,0.50196]
[1723547561100,6.9091,144.74,144.72,0.50196]
[1723547563292,6.9087,144.75,144.72,0.50196]
[1723547563617,17.2689,144.77,144.69,12.85]
[1723547563807,6.9103,144.71,144.69,12.85]
[1723547564007,6.9103,144.71,144.68,21.4826]
[1723547564203,6.91,144.72,144.68,28.3943]
[1723547564412,6.9096,144.73,144.68,28.3943]
[1723547564719,37.2686,144.78,144.7,7.03599]
[1723547565014,37.2686,144.78,144.73,12.85]
[1723547565015,6.9082,144.76,144.73,12.85]
[1723547565218,6.9077,144.77,144.74,0.50196]
[1723547565395,6.9077,144.77,144.74,45.50196]
[1723547565595,6.908,144.76,144.74,45.50196]
[1723547566296,6.9084,144.75,144.74,45.50196]
[1723547566713,6.9084,144.75,144.74,45.0]
[1723547567395,6.9113,144.69,144.68,21.4826]
[1723547567815,6.911,144.7,144.68,21.4826]
[1723547568015,6.9113,144.69,144.68,21.4826]
[1723547568215,6.9109,144.7,144.68,21.4826]
[1723547568416,6.9106,144.71,144.68,21.4826]
[1723547568893,6.9099,144.72,144.68,21.4826]
[1723547569413,6.9099,144.72,144.69,45.37647]
[1723547569720,6.9099,144.72,144.7,0.12549]
[1723547569918,17.2689,144.77,144.7,0.12549]
[1723547570222,6.9091,144.74,144.7,0.12549]
[1723547570412,6.9095,144.73,144.7,0.12549]
[1723547570607,6.9088,144.75,144.71,12.97549]
[1723547570927,6.9088,144.75,144.72,45.37647]
[1723547571309,6.9082,144.76,144.73,0.12549]
[1723547573196,6.9086,144.75,144.73,0.12549]
[1723547573731,6.9084,144.76,144.73,0.12549]
[1723547574031,6.9076,144.77,144.73,0.12549]
[1723547574601,6.9081,144.76,144.73,0.12549]
[1723547575232,6.9075,144.77,144.73,0.12549]
[1723547576123,6.908,144.76,144.73,0.12549]
[1723547577045,6.9081,144.76,144.73,0.12549]
[1723547580336,35.34992878,144.81,144.73,0.12549]
[1723547580544,20.0,144.8,144.73,0.12549]
[1723547580759,6.9089,144.74,144.73,0.12549]
[1723547581034,6.9085,144.75,144.73,0.12549]
[1723547581450,6.9089,144.74,144.73,0.12549]
[1723547581743,17.268,144.78,144.71,6.9102]
[1723547581946,20.0,144.77,144.71,6.9102]
[1723547582250,6.9081,144.76,144.72,6.9096]
[1723547582412,6.9076,144.77,144.72,6.9096]
[1723547582722,6.9076,144.77,144.73,0.12549]
[1723547582916,6.9076,144.77,144.73,7.28567]
[1723547583237,6.9076,144.77,144.75,0.12549]
[1723547583418,6.9076,144.77,144.75,0.37647]
[1723547584227,6.9076,144.77,144.76,0.12549]
[1723547584415,6.9076,144.77,144.76,0.50196]
[1723547584610,6.9071,144.78,144.77,0.12549]
[1723547584840,6.9067,144.79,144.77,0.12549]
[1723547585040,6.9067,144.79,144.77,0.37647]
[1723547585343,6.9067,144.79,144.78,0.12549]
[1723547585551,6.9067,144.79,144.78,0.50196]
[1723547587025,18.08452878,144.81,144.76,45.0]
[1723547587221,6.9079,144.76,144.75,45.37647]
[1723547587439,6.9079,144.76,144.75,45.12549]
[1723547588250,6.9087,144.75,144.71,24.1848]
[1723547588426,6.9087,144.75,144.71,17.2747]
[1723547588826,6.9087,144.75,144.71,24.1848]
[1723547589318,6.9081,144.76,144.71,24.1848]
[1723547589529,6.9075,144.77,144.72,0.12549]
[1723547589716,6.9075,144.77,144.72,45.37647]
[1723547589918,6.9075,144.77,144.73,45.0]
[1723547590121,6.9075,144.77,144.74,0.37647]
[1723547590718,6.9075,144.77,144.75,0.12549]
[1723547590922,17.2664,144.79,144.74,0.37647]
[1723547591142,17.2664,144.79,144.74,0.12549]
[1723547591351,6.9084,144.75,144.74,0.12549]
[1723547592360,6.9079,144.77,144.74,0.12549]
[1723547592530,6.9079,144.77,144.74,0.50196]
[1723547594336,6.9071,144.78,144.74,0.50196]
[1723547594757,6.9071,144.78,144.74,13.35196]
[1723547595062,6.9068,144.79,144.76,0.12549]
[1723547595241,6.9068,144.79,144.76,0.50196]
[1723547596350,6.9061,144.8,144.76,7.40986]
[1723547596644,6.9065,144.79,144.78,0.12549]
[1723547596965,6.9065,144.79,144.78,0.50196]
[1723547599228,6.9049,144.83,144.78,20.25856]
[1723547599583,6.9049,144.83,144.8,12.97549]
[1723547599735,6.9049,144.83,144.81,45.37647]
[1723547600725,6.9051,144.82,144.81,45.37647]
[1723547600934,6.9051,144.82,144.81,45.50196]
[1723547602370,6.9051,144.82,144.81,45.12549]
[1723547602539,6.9051,144.82,144.81,45.0]
[1723547604477,17.2629,144.82,144.75,22.8043]
[1723547604763,6.9072,144.78,144.75,22.8043]
[1723547605855,6.9076,144.77,144.72,6.9097]
[1723547606062,6.9076,144.77,144.73,6.9092]
[1723547606468,6.9072,144.78,144.73,6.9092]
[1723547606648,6.9072,144.78,144.74,6.9087]
[1723547606845,6.9067,144.79,144.74,6.9087]
[1723547607056,6.9067,144.79,144.75,0.12549]
[1723547607261,6.9067,144.79,144.75,45.50196]
[1723547607468,6.9062,144.8,144.75,45.50196]
[1723547607670,6.9062,144.8,144.77,0.12549]
[1723547607873,17.2627,144.83,144.77,45.50196]
[1723547608074,6.9064,144.8,144.77,45.50196]
[1723547608282,6.9065,144.79,144.78,45.0]
[1723547608480,6.907,144.78,144.77,0.50196]
[1723547609061,6.9065,144.79,144.77,0.50196]
[1723547609452,6.907,144.78,144.77,0.50196]
[1723547610065,6.9066,144.79,144.77,0.50196]
[1723547611890,6.9057,144.81,144.77,7.40936]
[1723547612172,6.9057,144.81,144.79,0.12549]
[1723547612396,6.9057,144.81,144.79,0.50196]
[1723547613291,15.0485,144.85,144.79,0.50196]
[1723547613292,6.9052,144.82,144.79,0.50196]
[1723547613594,6.9049,144.83,144.79,0.50196]
[1723547613962,6.9043,144.84,144.79,7.40816]
[1723547614281,6.9048,144.83,144.81,0.12549]
[1723547614611,40.9566,144.88,144.8,45.0]
[1723547614612,6.9056,144.81,144.8,45.0]
[1723547614956,6.9056,144.81,144.74,38.9988]
[1723547614957,6.9076,144.77,144.73,29.1858]
[1723547615481,6.9072,144.78,144.74,6.9088]
[1723547615894,6.9072,144.78,144.73,29.1857]
[1723547616402,6.9075,144.77,144.73,29.1857]
[1723547616764,17.2614,144.84,144.74,17.2717]
[1723547616971,20.0,144.83,144.74,17.2717]
[1723547617793,6.9068,144.79,144.75,52.41016]
[1723547617966,20.0,144.83,144.75,45.50196]
[1723547617967,0.81962878,144.82,144.75,45.50196]
[1723547618167,0.81962878,144.82,144.75,0.50196]
[1723547618389,6.9079,144.76,144.75,0.50196]
[1723547618782,17.2654,144.8,144.75,0.50196]
[1723547618783,6.9076,144.77,144.75,0.50196]
[1723547619798,6.9079,144.76,144.75,0.12549]
[1723547619998,6.9079,144.76,144.74,45.0]
[1723547620202,6.9079,144.76,144.74,0.12549]
[1723547620401,6.9079,144.76,144.74,0.50196]
[1723547621078,6.9075,144.77,144.74,0.50196]
[1723547621277,6.9075,144.77,144.74,45.50196]
[1723547624878,6.9083,144.76,144.74,45.50196]
[1723547625404,6.9084,144.75,144.74,45.50196]
[1723547626104,6.9081,144.76,144.74,45.50196]
[1723547626607,6.9081,144.76,144.74,0.50196]
[1723547627482,6.9077,144.77,144.74,0.50196]
[1723547627799,17.2654,144.8,144.74,7.41076]
[1723547627800,6.9073,144.78,144.74,7.41076]
[1723547628008,6.9073,144.78,144.75,45.0]
[1723547629302,6.9073,144.78,144.74,45.50196]
[1723547630106,6.9073,144.78,144.74,52.41086]
[1723547630778,6.9066,144.79,144.76,0.12549]
[1723547631004,6.9066,144.79,144.76,45.50196]
[1723547631513,6.907,144.78,144.76,45.50196]
[1723547631681,6.907,144.78,144.76,0.50196]
[1723547633001,6.9068,144.79,144.76,0.50196]
[1723547634100,6.907,144.78,144.76,0.50196]
[1723547634627,6.9075,144.77,144.76,0.12549]
[1723547634804,6.9079,144.76,144.75,0.37647]
[1723547635783,6.9079,144.76,144.75,45.50196]
[1723547635993,17.2652,144.8,144.75,45.50196]
[1723547635994,6.9076,144.77,144.75,45.50196]
[1723547636287,6.9071,144.78,144.76,0.12549]
[1723547636492,6.9073,144.78,144.76,0.12549]
[1723547640105,6.9067,144.79,144.76,0.12549]
[1723547640304,6.9079,144.76,144.75,45.37647]
[1723547640822,17.2675,144.78,144.71,6.1296]
[1723547640990,6.909,144.74,144.71,6.1296]
[1723547641188,6.9086,144.75,144.71,6.1296]
[1723547641684,6.9086,144.75,144.71,13.0399]
[1723547642411,6.908,144.76,144.72,7.16078]
[1723547642598,6.908,144.76,144.73,0.25098]
[1723547642914,6.9077,144.77,144.74,0.25098]
[1723547643493,6.9071,144.78,144.75,0.25098]
[1723547643694,6.9076,144.77,144.75,0.25098]
[1723547646398,6.9067,144.79,144.76,0.25098]
[1723547646597,6.9067,144.79,144.77,0.25098]
[1723547646801,6.9067,144.79,144.78,0.12549]
[1723547647014,6.9067,144.79,144.78,0.25098]
[1723547647191,6.9067,144.79,144.78,0.37647]
[1723547647524,6.9067,144.79,144.78,0.12549]
[1723547647703,6.907,144.78,144.77,0.12549]
[1723547647891,6.907,144.78,144.77,0.50196]
[1723547648904,17.2629,144.82,144.78,0.12549]
[1723547649207,6.9065,144.79,144.78,0.12549]
[1723547656920,6.9065,144.79,144.78,0.25098]
[1723547657425,6.9065,144.79,144.78,0.50196]
[1723547660017,6.908,144.76,144.74,45.0]
[1723547660210,6.9079,144.76,144.75,0.12549]
[1723547660408,17.2679,144.78,144.72,26.90619247]
[1723547660627,17.2679,144.78,144.72,16.5567]
[1723547660835,6.9086,144.75,144.72,16.5567]
[1723547661715,6.9086,144.75,144.73,0.25098]
[1723547661919,17.2679,144.78,144.74,0.12549]
[1723547661920,6.9081,144.76,144.74,0.12549]
[1723547663941,6.9076,144.77,144.74,0.12549]
[1723547668531,17.2669,144.79,144.74,0.12549]
[1723547669853,6.9084,144.75,144.74,0.12549]
[1723547670245,6.9084,144.75,144.74,0.25098]
[1723547670560,6.9071,144.78,144.74,7.41046]
[1723547670734,6.9066,144.79,144.76,0.12549]
[1723547671052,6.9066,144.79,144.76,0.25098]
[1723547671247,6.9066,144.79,144.77,0.12549]
[1723547671554,6.9066,144.79,144.78,0.12549]
[1723547671950,6.9066,144.79,144.78,0.25098]
[1723547672177,6.9066,144.79,144.78,0.50196]
[1723547672334,6.9062,144.8,144.78,0.50196]
[1723547672739,6.9057,144.81,144.79,0.25098]
[1723547673749,6.9057,144.81,144.8,0.12549]
[1723547673949,6.9057,144.81,144.8,0.25098]
[1723547674161,6.9057,144.81,144.8,0.50196]
[1723547675258,6.9052,144.82,144.8,0.50196]
[1723547675431,6.9052,144.82,144.81,0.25098]
[1723547675760,6.9052,144.82,144.81,0.50196]
[1723547680069,6.9064,144.8,144.79,0.12549]
[1723547680249,6.9064,144.8,144.79,0.50196]
[1723547680450,17.2641,144.81,144.76,6.5629]
[1723547680645,6.9075,144.77,144.76,6.5629]
[1723547681272,6.9072,144.78,144.76,6.5629]
[1723547681662,17.2615,144.84,144.77,0.25098]
[1723547681869,20.0,144.83,144.79,0.12549]
[1723547682075,20.0,144.83,144.79,0.25098]
[1723547682246,6.9059,144.81,144.8,0.37647]
[1723547682444,6.9059,144.81,144.8,0.50196]
[1723547687679,6.907,144.78,144.77,45.12549]
[1723547687870,6.907,144.78,144.77,45.50196]
[1723547688658,0.81962878,144.82,144.72,27.64888549]
[1723547688659,17.2653,144.8,144.72,33.87918549]
[1723547688859,17.2653,144.8,144.72,6.2303]
[1723547689178,32.84,144.79,144.72,6.2303]
[1723547689856,6.9084,144.75,144.72,6.2303]
[1723547690065,32.84,144.79,144.72,13.1401]
[1723547690066,6.9081,144.76,144.72,13.1401]
[1723547691149,6.9081,144.76,144.72,25.9801]
[1723547691356,6.9081,144.76,144.73,0.25098]
[1723547691558,6.9081,144.76,144.74,0.25098]
[1723547691777,6.9081,144.76,144.75,0.25098]
[1723547691963,6.9081,144.76,144.75,0.50196]
[1723547693770,6.9076,144.77,144.75,0.50196]
[1723547694366,6.9079,144.76,144.75,0.50196]
[1723547697486,6.9079,144.76,144.75,0.37647]
[1723547697777,6.9084,144.75,144.74,0.12549]
[1723547697984,6.9084,144.75,144.74,0.50196]
[1723547699487,6.9081,144.76,144.74,0.50196]
[1723547699715,6.9076,144.77,144.74,0.50196]
[1723547699866,6.9071,144.78,144.74,7.41076]
[1723547700064,6.9071,144.78,144.76,0.12549]
[1723547700382,6.9071,144.78,144.76,0.50196]
[1723547701587,6.9075,144.77,144.76,0.37647]
[1723547701792,6.9079,144.76,144.75,45.12549]
[1723547701966,6.9079,144.76,144.75,45.37647]
[1723547702164,20.0,144.79,144.76,0.12549]
[1723547702376,20.0,144.8,144.76,0.50196]
[1723547702695,6.9068,144.79,144.76,0.50196]
[1723547703669,6.9063,144.8,144.76,7.40986]
[1723547703869,26.9057,144.81,144.78,0.12549]
[1723547704073,6.9057,144.81,144.78,0.50196]
[1723547704393,6.9061,144.8,144.78,0.50196]